[Event "Cracovia Festival-A 2023"]
[Site "Krakow"]
[Date "2023.12.30"]
[Round "4.34"]
[White "Kowalczyk, Pawel"]
[Black "Manko, Mariia"]
[Result "1-0"]
[ECO "A04"]
[WhiteElo "2295"]
[BlackElo "2128"]
[Annotator "ChessBase"]
[PlyCount "87"]
[EventDate "2023.12.24"]
[EventType "swiss"]
[EventCountry "POL"]
[SourceTitle "playchess.com"]
[Source "ChessBase"]
[SourceQuality "1"]
[TimeControl "40/5400+30:1800+30"]

1. Nf3 {[%emt 0:00:02]} c5 {[%emt 0:03:27]} 2. g3 {[%emt 0:00:13]} Nc6 {[%emt 0:03:29]} 3. Bg2 {[%emt 0:00:03]} g6 {[%emt 0:00:11]} 4. h4 {[%emt 0:01:16]} Nf6 {[%emt 0:01:19]} 5. d3 {[%emt 0:00:23]} d5 {[%emt 0:01:44]} 6. Bg5 {[%emt 0:00:18]} Bg7 {[%emt 0:00:40]} 7. c3 {[%emt 0:00:03]} h6 {[%emt 0:05:20]} 8. Bxf6 {[%emt 0:00:02]} Bxf6 {[%emt 0:01:17]} 9. Nbd2 {[%emt 0:00:02]} O-O {[%emt 0:02:47]} 10. e4 {[%emt 0:00:03]} d4 {[%emt 0:06:41]} 11. c4 {[%emt 0:00:02]} Rb8 {[%emt 0:02:41]} 12. Qe2 {[%emt 0:00:30]} Bg4 {[%emt 0:01:59]} 13. Bh3 {[%emt 0:00:05]} Bxh3 {[%emt 0:04:24]} 14. Rxh3 {[%emt 0:00:03]} b5 {[%emt 0:07:15]} 15. Kf1 {[%emt 0:01:08]} Na5 {[%emt 0:03:39]} 16. Rc1 {[%emt 0:08:19]} Qb6 {[%emt 0:02:04]} 17. b3 {[%emt 0:00:06]} Nc6 {[%emt 0:02:14]} 18. cxb5 {[%emt 0:05:11]} Qxb5 {[%emt 0:01:54]} 19. Nc4 {[%emt 0:00:06]} a5 {[%emt 0:01:20]} 20. e5 {[%emt 0:00:22]} Bh8 {[%emt 0:11:06]} 21. g4 {[%emt 0:04:48]} a4 {[%emt 0:04:29]} 22. bxa4 {[%emt 0:04:07]} Qxa4 {[%emt 0:00:23]} 23. Qd2 {[%emt 0:00:10]} Kh7 {[%emt 0:03:06]} 24. h5 {[%emt 0:01:00]} g5 {[%emt 0:01:17]} 25. Nxg5+ {[%emt 0:00:02]} hxg5 {[%emt 0:00:13]} 26. Qxg5 {[%emt 0:00:02]} e6 {[%emt 0:02:35]} 27. Rf3 {[%emt 0:00:05]} Qa7 {[%emt 0:04:13]} 28. Re1 {[%emt 0:00:32]} Qe7 {[%emt 0:05:21]} 29. Qf4 {[%emt 0:00:08]} Nb4 {[%emt 0:00:37]} 30. g5 {[%emt 0:02:25]} Nd5 {[%emt 0:00:29]} 31. Qe4+ {[%emt 0:02:02]} Kg8 {[%emt 0:00:09]} 32. h6 {[%emt 0:00:38]} Rfd8 {[%emt 0:02:48]} 33. Nd6 {[%emt 0:02:32]} Rxd6 {[%emt 0:01:47]} 34. exd6 {[%emt 0:00:28]} Qxd6 {[%emt 0:00:40]} 35. h7+ {[%emt 0:01:36]} Kf8 {[%emt 0:04:52]} 36. Qg6 {[%emt 0:05:57]} Nf4 {[%emt 0:00:05]} 37. Qg8+ {[%emt 0:00:06]} Ke7 {[%emt 0:00:04]} 38. g6 {[%emt 0:00:03]} fxg6 {[%emt 0:02:01]} 39. Rxf4 {[%emt 0:00:33]} Qxf4 {[%emt 0:03:09]} 40. Qxe6+ {[%emt 0:00:00]} Kd8 {[%emt 0:00:00]} 41. Qe7+ {[%emt 0:00:10]} Kc8 {[%emt 0:00:20]} 42. Qxc5+ {[%emt 0:00:05]} Qc7 {[%emt 0:00:33]} 43. Re8+ {[%emt 0:00:08]} Kb7 {[%emt 0:00:32]} 44. Re7 {[%emt 0:00:03]} 1-0

[Event "Cracovia Festival-A 2023"]
[Site "Krakow"]
[Date "2023.12.30"]
[Round "4.35"]
[White "Marszalek, Maciej"]
[Black "Lehocz, Jozsef Jr."]
[Result "0-1"]
[ECO "A21"]
[WhiteElo "2269"]
[BlackElo "2116"]
[Annotator "RC"]
[PlyCount "120"]
[EventDate "2023.12.24"]
[EventType "swiss"]
[EventCountry "POL"]
[SourceTitle "playchess.com"]
[Source "ChessBase"]
[SourceQuality "1"]
[TimeControl "40/5400+30:1800+30"]

1. c4 {[%emt 0:00:02]} e5 {[%emt 0:00:23]} 2. Nc3 {[%emt 0:00:10]} Bb4 {[%emt 0:00:35]} 3. g3 {[%emt 0:00:46]} Bxc3 {[%emt 0:01:11]} 4. dxc3 {[%emt 0:02:48]} d6 {[%emt 0:03:13]} 5. Bg2 {[%emt 0:00:44]} f5 {[%emt 0:02:29]} 6. e4 {[%emt 0:03:37]} Nc6 {[%emt 0:19:10]} 7. Qc2 {[%emt 0:23:17]} Nge7 {[%emt 0:01:58]} 8. Bg5 {[%emt 0:07:00]} O-O {[%emt 0:02:38]} 9. Ne2 {[%emt 0:04:29]} h6 {[%emt 0:02:12]} 10. Be3 {[%emt 0:00:42]} fxe4 {[%emt 0:09:02]} 11. O-O-O {[%emt 0:03:54]} Be6 {[%emt 0:22:21]} 12. b3 {[%emt 0:00:40]} a5 {[%emt 0:01:53]} 13. a4 {[%emt 0:00:34]} Nf5 {[%emt 0:00:29]} 14. Qxe4 {[%emt 0:00:42]} Nxe3 {[%emt 0:01:16]} 15. Qxe3 {[%emt 0:00:28]} Qf6 {[%emt 0:01:25]} 16. Rhf1 {[%emt 0:01:16]} Rae8 {[%emt 0:01:44]} 17. Kb2 {[%emt 0:00:23]} Qf7 {[%emt 0:02:42]} 18. Qd2 {[%emt 0:01:16]} Qh5 {[%emt 0:01:59]} 19. h4 {[%emt 0:04:07]} Bg4 {[%emt 0:00:51]} 20. Rde1 {[%emt 0:03:00]} Bf3 {[%emt 0:00:32]} 21. Bh3 {[%emt 0:01:21]} Kh8 {[%emt 0:02:34]} 22. Ng1 {[%emt 0:02:03]} Bg4 {[%emt 0:02:52]} 23. Bg2 {[%emt 0:00:20]} Nd8 {[%emt 0:05:16]} 24. Be4 {[%emt 0:01:53]} Bf5 {[%emt 0:02:45]} 25. Bf3 {[%emt 0:03:42]} Bg4 {[%emt 0:00:27]} 26. Be4 {[%emt 0:01:35]} Bd7 {[%emt 0:01:26]} 27. f3 {[%emt 0:01:24]} Ne6 {[%emt 0:02:35]} 28. Bb1 {[%emt 0:06:09]} Nc5 {[%emt 0:01:05]} 29. g4 {[%emt 0:00:54]} Qxh4 {[%emt 0:00:14]} 30. Ne2 {[%emt 0:00:16]} Qg5 {[%emt 0:01:15]} 31. f4 {[%emt 0:12:17]} exf4 {[%emt 0:01:40]} 32. Nxf4 {[%emt 0:00:14]} Kg8 {[%emt 0:01:09]} 33. Rxe8 {[%emt 0:05:21]} Bxe8 {[%emt 0:00:09]} 34. Rf2 {[%emt 0:05:11]} Bc6 {[%emt 0:01:17]} 35. Ng6 {[%emt 0:02:16]} Qxd2+ {[%emt 0:00:59]} 36. Rxd2 {[%emt 0:00:01]} Re8 {[%emt 0:00:32]} 37. b4 {[%emt 0:01:09]} axb4 {[%emt 0:01:09]} 38. cxb4 {[%emt 0:00:07]} Nxa4+ {[%emt 0:00:25]} 39. Kb3 {[%emt 0:00:51]} Re3+ {[%emt 0:00:47]} 40. Rd3 {[%emt 0:00:00]} Rxd3+ 41. Bxd3 {[%emt 0:00:39]} Nb6 {[%emt 0:12:57]} 42. c5 {[%emt 0:02:00]} dxc5 {[%emt 0:01:03]} 43. bxc5 {[%emt 0:00:14]} Nd7 {[%emt 0:00:36]} 44. Kb4 {[%emt 0:00:47]} Kf7 {[%emt 0:00:37]} 45. Bf5 {[%emt 0:00:16]} Kf6 {[%emt 0:03:22]} 46. Nf4 {[%emt 0:00:27]} Ne5 {[%emt 0:00:45]} 47. Bc8 {[%emt 0:00:26]} Bf3 {[%emt 0:04:50]} 48. Kc3 {[%emt 0:01:10]} Nxg4 {[%emt 0:01:57]} 49. Ne6 {[%emt 0:00:10]} Ne3 {[%emt 0:02:40]} 50. Kd4 {[%emt 0:00:58]} Bg4 {[%emt 0:00:14]} 51. Nxc7 {[%emt 0:00:49]} Bxc8 {[%emt 0:00:11]} 52. Kxe3 {[%emt 0:00:01]} Ke5 {[%emt 0:00:20]} 53. Ne8 {[%emt 0:00:00]} Bd7 {[%emt 0:00:41]} 54. Nxg7 {[%emt 0:00:02]} Kd5 {[%emt 0:00:10]} 55. Nh5 {[%emt 0:01:09]} Kxc5 {[%emt 0:00:10]} 56. Nf6 {[%emt 0:00:05]} Be6 {[%emt 0:01:03]} 57. Ne4+ {[%emt 0:00:28]} Kd5 {[%emt 0:01:23]} 58. Kf4 {[%emt 0:01:42]} b5 {[%emt 0:00:51]} 59. Nc3+ {[%emt 0:00:39]} Kc4 {[%emt 0:00:13]} 60. Nxb5 {[%emt 0:00:05]} Kxb5 {[%emt 0:00:07]} 0-1

[Event "Cracovia Festival-A 2023"]
[Site "Krakow"]
[Date "2023.12.30"]
[Round "4.36"]
[White "Piekielny, Pawel"]
[Black "Zalega, Maciej"]
[Result "1-0"]
[ECO "A65"]
[WhiteElo "2250"]
[BlackElo "2113"]
[Annotator "RC"]
[PlyCount "87"]
[EventDate "2023.12.24"]
[EventType "swiss"]
[EventCountry "POL"]
[SourceTitle "playchess.com"]
[Source "ChessBase"]
[SourceQuality "1"]
[TimeControl "40/5400+30:1800+30"]

1. d4 {[%emt 0:00:01]} Nf6 {[%emt 0:01:47]} 2. c4 {[%emt 0:00:06]} c5 {[%emt 0:00:33]} 3. d5 {[%emt 0:00:05]} e6 {[%emt 0:01:07]} 4. Nc3 {[%emt 0:00:08]} exd5 {[%emt 0:01:13]} 5. cxd5 {[%emt 0:00:05]} d6 {[%emt 0:00:04]} 6. e4 {[%emt 0:00:23]} Be7 {[%emt 0:01:38]} 7. Bd3 {[%emt 0:02:13]} O-O {[%emt 0:01:02]} 8. Nf3 {[%emt 0:02:32]} a6 {[%emt 0:00:43]} 9. a4 {[%emt 0:00:30]} Bg4 {[%emt 0:00:24]} 10. h3 {[%emt 0:04:54]} Bh5 {[%emt 0:01:32]} 11. Qb3 {[%emt 0:10:21]} Bxf3 {[%emt 0:09:12]} 12. gxf3 {[%emt 0:00:05]} Nbd7 {[%emt 0:00:15]} 13. f4 {[%emt 0:01:38]} Qc7 {[%emt 0:01:15]} 14. Be3 {[%emt 0:02:16]} Rfc8 {[%emt 0:05:50]} 15. Qd1 {[%emt 0:00:29]} Rab8 {[%emt 0:05:34]} 16. b3 {[%emt 0:06:48]} Bf8 {[%emt 0:02:44]} 17. O-O {[%emt 0:00:34]} g6 {[%emt 0:01:52]} 18. a5 {[%emt 0:09:04]} Bg7 {[%emt 0:02:07]} 19. Qc2 {[%emt 0:00:10]} Re8 {[%emt 0:02:23]} 20. Ra4 {[%emt 0:00:55]} Qd8 {[%emt 0:08:49]} 21. Be2 {[%emt 0:12:33]} Kh8 {[%emt 0:03:33]} 22. Kh2 {[%emt 0:01:04]} Rc8 {[%emt 0:02:02]} 23. Bf3 {[%emt 0:04:29]} Ng8 {[%emt 0:03:39]} 24. Ne2 {[%emt 0:05:51]} Nh6 {[%emt 0:07:33]} 25. Ng3 {[%emt 0:02:02]} Rf8 {[%emt 0:06:23]} 26. f5 {[%emt 0:06:46]} Re8 {[%emt 0:05:56]} 27. Qd2 {[%emt 0:02:00]} Ng8 {[%emt 0:01:45]} 28. Be2 {[%emt 0:05:22]} Rb8 {[%emt 0:02:23]} 29. Rc1 {[%emt 0:01:51]} Ndf6 {[%emt 0:06:11]} 30. Bd3 {[%emt 0:05:52]} Qd7 {[%emt 0:06:10]} 31. Rac4 {[%emt 0:02:32]} h5 {[%emt 0:01:24]} 32. fxg6 {[%emt 0:00:29]} fxg6 {[%emt 0:00:05]} 33. b4 {[%emt 0:01:25]} Qf7 {[%emt 0:01:49]} 34. f4 {[%emt 0:05:56]} h4 {[%emt 0:00:57]} 35. Ne2 {[%emt 0:00:09]} Bh6 {[%emt 0:01:09]} 36. bxc5 {[%emt 0:01:01]} dxc5 {[%emt 0:01:11]} 37. Bxc5 {[%emt 0:01:14]} Rbd8 {[%emt 0:01:28]} 38. Bd4 {[%emt 0:00:32]} Kh7 {[%emt 0:00:05]} 39. Rc7 {[%emt 0:03:15]} Rd7 {[%emt 0:00:33]} 40. Rxd7 {[%emt 0:00:00]} Qxd7 {[%emt 0:00:00]} 41. e5 {[%emt 0:10:29]} Nxd5 {[%emt 0:02:16]} 42. Bxg6+ {[%emt 0:01:11]} Kxg6 {[%emt 0:00:06]} 43. Qd3+ {[%emt 0:00:22]} Kf7 {[%emt 0:01:10]} 44. Qh7+ {[%emt 0:00:19]} 1-0

[Event "Cracovia Festival-A 2023"]
[Site "Krakow"]
[Date "2023.12.30"]
[Round "4.37"]
[White "Bilczewski, Kacper"]
[Black "Dziewonski, Dariusz"]
[Result "0-1"]
[ECO "B22"]
[WhiteElo "2125"]
[BlackElo "2224"]
[Annotator "ChessBase"]
[PlyCount "99"]
[EventDate "2023.12.24"]
[EventType "swiss"]
[EventCountry "POL"]
[SourceTitle "playchess.com"]
[Source "ChessBase"]
[SourceQuality "1"]
[TimeControl "40/5400+30:1800+30"]

1. e4 {[%emt 0:00:04]} c5 {[%emt 0:00:10]} 2. c3 {[%emt 0:00:07]} Nf6 {[%emt 0:00:07]} 3. e5 {[%emt 0:00:15]} Nd5 {[%emt 0:00:05]} 4. d4 {[%emt 0:00:04]} cxd4 {[%emt 0:00:07]} 5. cxd4 {[%emt 0:00:06]} d6 {[%emt 0:00:55]} 6. Nf3 {[%emt 0:00:24]} Nc6 {[%emt 0:00:44]} 7. Bc4 {[%emt 0:00:36]} Nb6 {[%emt 0:00:15]} 8. Bb5 {[%emt 0:00:26]} dxe5 {[%emt 0:00:48]} 9. Nxe5 {[%emt 0:00:16]} Bd7 {[%emt 0:00:07]} 10. Nxd7 {[%emt 0:00:05]} Qxd7 {[%emt 0:00:06]} 11. Nc3 {[%emt 0:00:46]} e6 {[%emt 0:00:34]} 12. O-O {[%emt 0:01:09]} a6 {[%emt 0:00:36]} 13. Bxc6 {[%emt 0:02:53]} Qxc6 {[%emt 0:00:06]} 14. Qg4 {[%emt 0:01:43]} Nd5 {[%emt 0:12:08]} 15. Nxd5 {[%emt 0:09:59]} Qxd5 {[%emt 0:00:14]} 16. Be3 {[%emt 0:00:04]} h5 {[%emt 0:13:18]} 17. Qg3 {[%emt 0:08:39]} h4 {[%emt 0:04:53]} 18. Qe5 {[%emt 0:07:05]} Rh5 {[%emt 0:03:32]} 19. Qxd5 {[%emt 0:00:07]} Rxd5 {[%emt 0:00:04]} 20. Rac1 {[%emt 0:00:04]} Kd7 {[%emt 0:04:22]} 21. Rc2 {[%emt 0:01:12]} Rc8 {[%emt 0:00:52]} 22. Rxc8 {[%emt 0:00:09]} Kxc8 {[%emt 0:00:04]} 23. Rc1+ {[%emt 0:00:04]} Kd7 {[%emt 0:00:34]} 24. h3 {[%emt 0:00:19]} Be7 {[%emt 0:06:14]} 25. Bf4 {[%emt 0:09:45]} Bd6 {[%emt 0:05:36]} 26. Be3 {[%emt 0:00:13]} Be7 {[%emt 0:03:23]} 27. Bf4 {[%emt 0:00:49]} Bd8 {[%emt 0:04:11]} 28. Kf1 {[%emt 0:10:35]} Bb6 {[%emt 0:04:47]} 29. Be3 {[%emt 0:00:17]} Bxd4 {[%emt 0:01:22]} 30. Bxd4 {[%emt 0:00:07]} Rxd4 {[%emt 0:00:04]} 31. Ke2 {[%emt 0:00:05]} g5 {[%emt 0:13:34]} 32. Ke3 {[%emt 0:00:36]} Rd5 {[%emt 0:00:22]} 33. Rc4 {[%emt 0:02:09]} e5 {[%emt 0:03:16]} 34. Rg4 {[%emt 0:05:17]} f6 {[%emt 0:00:32]} 35. Rc4 {[%emt 0:00:23]} Rd1 {[%emt 0:02:48]} 36. Rb4 {[%emt 0:01:11]} Kc6 {[%emt 0:04:28]} 37. Rc4+ {[%emt 0:05:38]} Kd6 {[%emt 0:01:16]} 38. Rb4 {[%emt 0:00:17]} b5 {[%emt 0:00:56]} 39. Rb3 {[%emt 0:02:58]} Re1+ {[%emt 0:04:23]} 40. Kf3 {[%emt 0:00:00]} f5 {[%emt 0:00:00]} 41. g3 {[%emt 0:01:43]} e4+ {[%emt 0:06:12]} 42. Kg2 {[%emt 0:00:06]} f4 {[%emt 0:03:09]} 43. gxh4 {[%emt 0:01:42]} gxh4 {[%emt 0:00:24]} 44. Ra3 {[%emt 0:01:30]} f3+ {[%emt 0:01:16]} 45. Kh2 {[%emt 0:00:04]} Rf1 {[%emt 0:00:26]} 46. Rxa6+ {[%emt 0:00:03]} Kd5 {[%emt 0:00:54]} 47. Rh6 {[%emt 0:02:10]} Rxf2+ {[%emt 0:00:11]} 48. Kg1 {[%emt 0:00:05]} Rg2+ {[%emt 0:00:54]} 49. Kf1 {[%emt 0:00:11]} e3 {[%emt 0:00:54]} 50. Rh5+ {[%emt 0:00:30]} 0-1

[Event "Cracovia Festival-A 2023"]
[Site "Krakow"]
[Date "2023.12.30"]
[Round "4.38"]
[White "Gierulski, Kamil"]
[Black "Warchol, Kamil"]
[Result "1/2-1/2"]
[ECO "B51"]
[WhiteElo "2223"]
[BlackElo "2108"]
[Annotator "RC"]
[PlyCount "94"]
[EventDate "2023.12.24"]
[EventType "swiss"]
[EventCountry "POL"]
[SourceTitle "playchess.com"]
[Source "ChessBase"]
[SourceQuality "1"]
[TimeControl "40/5400+30:1800+30"]

1. e4 {[%emt 0:00:02]} c5 {[%emt 0:00:14]} 2. Nf3 {[%emt 0:00:03]} d6 {[%emt 0:00:06]} 3. Bb5+ {[%emt 0:00:04]} Nd7 {[%emt 0:00:07]} 4. a4 {[%emt 0:00:04]} Ngf6 {[%emt 0:01:39]} 5. Nc3 {[%emt 0:00:04]} a6 {[%emt 0:02:36]} 6. Be2 {[%emt 0:00:05]} g6 {[%emt 0:01:10]} 7. a5 {[%emt 0:00:16]} Bg7 {[%emt 0:02:02]} 8. O-O {[%emt 0:00:08]} O-O {[%emt 0:01:15]} 9. d3 {[%emt 0:00:11]} b5 {[%emt 0:08:17]} 10. axb6 {[%emt 0:00:05]} Qxb6 {[%emt 0:00:46]} 11. Nd2 {[%emt 0:04:48]} Ne5 {[%emt 0:08:10]} 12. h3 {[%emt 0:02:03]} Qc7 {[%emt 0:05:52]} 13. f4 {[%emt 0:03:03]} Nc6 {[%emt 0:00:36]} 14. Nf3 {[%emt 0:01:32]} Rb8 {[%emt 0:02:57]} 15. f5 {[%emt 0:07:18]} gxf5 {[%emt 0:05:32]} 16. Qe1 {[%emt 0:04:01]} Nd4 {[%emt 0:09:14]} 17. Bd1 {[%emt 0:01:59]} Kh8 {[%emt 0:04:25]} 18. Qh4 {[%emt 0:02:03]} Nxf3+ {[%emt 0:03:24]} 19. Bxf3 {[%emt 0:06:25]} fxe4 {[%emt 0:04:08]} 20. dxe4 {[%emt 0:18:55]} Be6 {[%emt 0:01:57]} 21. Be2 {[%emt 0:01:59]} a5 {[%emt 0:04:25]} 22. Bg5 {[%emt 0:06:32]} Rg8 {[%emt 0:04:15]} 23. Nd5 {[%emt 0:03:24]} Nxd5 {[%emt 0:04:25]} 24. exd5 {[%emt 0:00:20]} Bxd5 {[%emt 0:00:41]} 25. c4 {[%emt 0:11:18]} Bd4+ {[%emt 0:05:14]} 26. Kh2 {[%emt 0:00:50]} Be5+ {[%emt 0:04:10]} 27. Kg1 {[%emt 0:01:04]} Bd4+ {[%emt 0:03:19]} 28. Kh2 {[%emt 0:00:02]} f6 {[%emt 0:02:29]} 29. Bd3 {[%emt 0:03:21]} Be5+ {[%emt 0:00:34]} 30. Kg1 {[%emt 0:00:25]} Bd4+ {[%emt 0:00:18]} 31. Kh2 {[%emt 0:00:03]} Be5+ {[%emt 0:00:30]} 32. Kg1 {[%emt 0:00:02]} Bd4+ {[%emt 0:01:06]} 33. Kh2 {[%emt 0:00:02]} Rg7 {[%emt 0:00:23]} 34. cxd5 {[%emt 0:01:11]} fxg5 {[%emt 0:00:24]} 35. Qh5 {[%emt 0:01:20]} Bxb2 {[%emt 0:03:02]} 36. Rf7 {[%emt 0:04:12]} Bxa1 {[%emt 0:02:15]} 37. Bxh7 {[%emt 0:11:45]} Be5+ {[%emt 0:00:38]} 38. Kg1 {[%emt 0:00:21]} Rxf7 {[%emt 0:01:10]} 39. Bg6+ {[%emt 0:00:16]} Kg8 {[%emt 0:00:19]} 40. Bxf7+ {[%emt 0:00:00]} Kf8 {[%emt 0:00:00]} 41. Be6 {[%emt 0:07:42]} Rb1+ {[%emt 0:26:02]} 42. Kf2 {[%emt 0:00:05]} Rb2+ {[%emt 0:02:30]} 43. Kf3 {[%emt 0:08:38]} g4+ {[%emt 0:01:43]} 44. Kxg4 {[%emt 0:00:30]} Rxg2+ {[%emt 0:01:11]} 45. Kf3 {[%emt 0:01:03]} Rg3+ {[%emt 0:00:47]} 46. Kf2 {[%emt 0:00:01]} Kg7 {[%emt 0:00:39]} 47. Qf7+ {[%emt 0:01:20]} Kh6 {[%emt 0:00:57]} 1/2-1/2

[Event "Cracovia Festival-A 2023"]
[Site "Krakow"]
[Date "2023.12.30"]
[Round "4.39"]
[White "Wojdak, Jan"]
[Black "Biesiadecki, Adam"]
[Result "1/2-1/2"]
[ECO "C42"]
[WhiteElo "2219"]
[BlackElo "2102"]
[Annotator "RC"]
[PlyCount "91"]
[EventDate "2023.12.24"]
[EventType "swiss"]
[EventCountry "POL"]
[SourceTitle "playchess.com"]
[Source "ChessBase"]
[SourceQuality "1"]
[TimeControl "40/5400+30:1800+30"]

1. e4 {[%emt 0:00:03]} e5 {[%emt 0:00:04]} 2. Nf3 {[%emt 0:00:05]} Nf6 {[%emt 0:00:04]} 3. Nxe5 {[%emt 0:09:16]} d6 {[%emt 0:00:07]} 4. Nd3 {[%emt 0:00:25]} Nxe4 {[%emt 0:00:19]} 5. Nf4 {[%emt 0:05:14]} d5 {[%emt 0:00:40]} 6. d4 {[%emt 0:02:37]} c6 {[%emt 0:06:46]} 7. Bd3 {[%emt 0:00:12]} Be7 {[%emt 0:00:53]} 8. Qf3 {[%emt 0:07:16]} O-O {[%emt 0:06:27]} 9. O-O {[%emt 0:02:17]} Ng5 {[%emt 0:18:57]} 10. Qd1 {[%emt 0:11:58]} Ne6 {[%emt 0:13:32]} 11. c3 {[%emt 0:02:12]} Nxf4 {[%emt 0:02:20]} 12. Bxf4 {[%emt 0:00:05]} Bd6 {[%emt 0:01:27]} 13. Qh5 {[%emt 0:02:43]} g6 {[%emt 0:00:18]} 14. Qf3 {[%emt 0:01:23]} Bxf4 {[%emt 0:00:19]} 15. Qxf4 {[%emt 0:00:05]} Nd7 {[%emt 0:00:55]} 16. Re1 {[%emt 0:04:53]} Re8 {[%emt 0:03:40]} 17. Nd2 {[%emt 0:00:30]} Rxe1+ {[%emt 0:01:05]} 18. Rxe1 {[%emt 0:00:05]} Nf8 {[%emt 0:01:01]} 19. Nf3 {[%emt 0:01:34]} Ne6 {[%emt 0:00:51]} 20. Qh6 {[%emt 0:10:53]} Qf6 {[%emt 0:03:42]} 21. h4 {[%emt 0:03:46]} Bd7 {[%emt 0:02:12]} 22. Ne5 {[%emt 0:01:36]} Rd8 {[%emt 0:06:18]} 23. g3 {[%emt 0:02:15]} Ng7 {[%emt 0:02:27]} 24. Nxd7 {[%emt 0:14:20]} Rxd7 {[%emt 0:00:10]} 25. Re5 {[%emt 0:00:08]} Re7 {[%emt 0:01:04]} 26. Qe3 {[%emt 0:00:58]} Re6 {[%emt 0:10:35]} 27. f4 {[%emt 0:05:56]} b6 {[%emt 0:02:03]} 28. b3 {[%emt 0:04:33]} Rxe5 {[%emt 0:00:36]} 29. fxe5 {[%emt 0:00:36]} Qe6 {[%emt 0:00:28]} 30. Qg5 {[%emt 0:00:40]} Qd7 {[%emt 0:02:04]} 31. b4 {[%emt 0:01:09]} Ne6 {[%emt 0:01:17]} 32. Qf6 {[%emt 0:00:22]} Qd8 {[%emt 0:00:14]} 33. Qf3 {[%emt 0:00:46]} c5 {[%emt 0:00:32]} 34. dxc5 {[%emt 0:03:40]} bxc5 {[%emt 0:00:05]} 35. Qe3 {[%emt 0:00:10]} d4 {[%emt 0:00:43]} 36. cxd4 {[%emt 0:00:10]} cxd4 {[%emt 0:00:17]} 37. Qe4 {[%emt 0:00:31]} Qc7 {[%emt 0:00:24]} 38. Qe1 {[%emt 0:02:57]} Qc6 {[%emt 0:00:15]} 39. Kf2 {[%emt 0:00:40]} Qd5 {[%emt 0:00:17]} 40. Qe2 {[%emt 0:00:00]} Qh1 {[%emt 0:00:00]} 41. Be4 {[%emt 0:10:20]} Qc1 {[%emt 0:08:22]} 42. Qc2 {[%emt 0:09:43]} Qe3+ {[%emt 0:01:01]} 43. Kg2 {[%emt 0:00:05]} Qe1 44. a3 Qa1 45. Qb3 Qe1 46. Qd3 1/2-1/2

[Event "Cracovia Festival-A 2023"]
[Site "Krakow"]
[Date "2023.12.30"]
[Round "4.40"]
[White "Zarnowski, Krzysztof"]
[Black "Meers, Hubert"]
[Result "1/2-1/2"]
[ECO "A80"]
[WhiteElo "2114"]
[BlackElo "2218"]
[Annotator "RC"]
[PlyCount "89"]
[EventDate "2023.12.24"]
[EventType "swiss"]
[EventCountry "POL"]
[SourceTitle "playchess.com"]
[Source "ChessBase"]
[SourceQuality "1"]
[TimeControl "40/5400+30:1800+30"]

1. d4 {[%emt 0:00:02]} f5 {[%emt 0:13:22]} 2. Nc3 {[%emt 0:00:48]} Nf6 {[%emt 0:00:04]} 3. Bg5 {[%emt 0:00:05]} d5 {[%emt 0:00:06]} 4. Bxf6 {[%emt 0:00:05]} exf6 {[%emt 0:00:30]} 5. e3 {[%emt 0:00:05]} Be6 {[%emt 0:08:35]} 6. Bd3 {[%emt 0:00:09]} Bd6 {[%emt 0:02:47]} 7. Qf3 {[%emt 0:00:16]} Qd7 {[%emt 0:00:04]} 8. h4 {[%emt 0:04:51]} Nc6 {[%emt 0:01:07]} 9. a3 {[%emt 0:00:19]} f4 {[%emt 0:03:37]} 10. Nge2 {[%emt 0:02:46]} fxe3 {[%emt 0:03:42]} 11. Qxe3 {[%emt 0:05:50]} O-O-O {[%emt 0:02:12]} 12. O-O-O {[%emt 0:02:40]} Rhe8 {[%emt 0:12:16]} 13. Qd2 {[%emt 0:06:07]} a6 {[%emt 0:02:35]} 14. Bxh7 {[%emt 0:07:25]} Na5 {[%emt 0:05:51]} 15. Ne4 {[%emt 0:11:02]} Nc4 {[%emt 0:08:57]} 16. Nxd6+ {[%emt 0:00:08]} Qxd6 {[%emt 0:00:02]} 17. Qd3 {[%emt 0:06:19]} Bg4 {[%emt 0:02:18]} 18. Rhe1 {[%emt 0:01:58]} Qb6 {[%emt 0:00:10]} 19. b3 {[%emt 0:00:27]} Nxa3 {[%emt 0:00:35]} 20. f3 {[%emt 0:06:08]} Bd7 {[%emt 0:00:30]} 21. Bg6 {[%emt 0:03:42]} Re6 {[%emt 0:01:11]} 22. Nf4 {[%emt 0:05:32]} Rxe1 {[%emt 0:03:17]} 23. Rxe1 {[%emt 0:00:05]} Qd6 {[%emt 0:00:05]} 24. g3 {[%emt 0:14:30]} Nb5 {[%emt 0:00:05]} 25. Re3 {[%emt 0:03:28]} Kb8 {[%emt 0:00:57]} 26. Nh5 {[%emt 0:01:26]} f5 {[%emt 0:03:21]} 27. Nf4 {[%emt 0:01:23]} Qf6 {[%emt 0:00:07]} 28. Re5 {[%emt 0:01:31]} c5 {[%emt 0:03:55]} 29. Rxd5 {[%emt 0:02:28]} Nxd4 {[%emt 0:00:44]} 30. Qe3 {[%emt 0:01:23]} Bc6 {[%emt 0:09:14]} 31. Rxd8+ {[%emt 0:00:55]} Qxd8 {[%emt 0:00:01]} 32. Qe5+ {[%emt 0:00:12]} Ka8 {[%emt 0:01:13]} 33. Qxg7 {[%emt 0:03:14]} Qa5 {[%emt 0:00:17]} 34. Kb2 {[%emt 0:01:53]} Bxf3 {[%emt 0:00:17]} 35. Nd3 {[%emt 0:02:12]} Ne2 {[%emt 0:05:39]} 36. Qf8+ {[%emt 0:01:55]} Ka7 {[%emt 0:00:01]} 37. Qxf5 {[%emt 0:00:39]} Qc3+ {[%emt 0:01:30]} 38. Kb1 {[%emt 0:00:05]} c4 {[%emt 0:04:04]} 39. Qc5+ {[%emt 0:04:09]} Kb8 {[%emt 0:00:42]} 40. Qf8+ {[%emt 0:00:00]} Ka7 {[%emt 0:00:00]} 41. Qxf3 {[%emt 0:12:03]} cxd3 {[%emt 0:00:07]} 42. Qe3+ {[%emt 0:00:47]} Ka8 {[%emt 0:00:19]} 43. Bxd3 {[%emt 0:00:35]} Qe1+ {[%emt 0:00:06]} 44. Kb2 {[%emt 0:00:07]} Qc3+ {[%emt 0:00:06]} 45. Kb1 {[%emt 0:01:21]} 1/2-1/2